[Event "Titled Tuesday Blitz June 21 Early 2022"]
[White "Prokofiev, Valentyn"]
[Black "Zierk, Steven"]
[WhiteFideId "14160161"]
[BlackFideId "2034255"]
[WhiteElo "2142"]
[BlackElo "2494"]
[Result "0-1"]
[Round "02"]
[TimeControl "180+1"]
[Date "2022.06.21"]
[WhiteClock "0:00:21"]
[BlackClock "0:00:25"]

1. d4 {[%clk 0:03:00]}  Nf6 {[%clk 0:02:59]} 2. c4 {[%clk 0:03:01]}  g6 {[%clk 0:02:59]} 3. Nc3 {[%clk 0:03:01]}  Bg7 {[%clk 0:02:59]} 4. e4 {[%clk 0:03:01]}  d6 {[%clk 0:03:00]} 5. Nf3 {[%clk 0:03:02]}  O-O {[%clk 0:03:00]} 6. Be2 {[%clk 0:03:03]}  Nbd7 {[%clk 0:03:00]} 7. O-O {[%clk 0:03:03]}  e5 {[%clk 0:03:00]} 8. Qc2 {[%clk 0:03:03]}  c6 {[%clk 0:02:59]} 9. d5 {[%clk 0:03:03]}  c5 {[%clk 0:02:58]} 10. Bg5 {[%clk 0:03:03]}  h6 {[%clk 0:02:58]} 11. Bd2 {[%clk 0:03:04]}  Nh5 {[%clk 0:02:55]} 12. g3 {[%clk 0:03:04]}  Ndf6 {[%clk 0:02:40]} 13. Nh4 {[%clk 0:03:01]}  Bh3 {[%clk 0:02:37]} 14. Ng2 {[%clk 0:03:01]}  Qd7 {[%clk 0:02:25]} 15. f3 {[%clk 0:03:00]}  Nh7 {[%clk 0:02:23]} 16. Rf2 {[%clk 0:02:59]}  f5 {[%clk 0:02:22]} 17. Nh4 {[%clk 0:03:00]}  Rf6 {[%clk 0:02:14]} 18. exf5 {[%clk 0:02:54]}  gxf5 {[%clk 0:02:13]} 19. Bf1 {[%clk 0:02:54]}  Bxf1 {[%clk 0:02:13]} 20. Raxf1 {[%clk 0:02:55]}  Ng5 {[%clk 0:02:09]} 21. Kg2 {[%clk 0:02:52]}  Re8 {[%clk 0:02:01]} 22. f4 {[%clk 0:02:48]}  exf4 {[%clk 0:01:59]} 23. Bxf4 {[%clk 0:02:48]}  Ne4 {[%clk 0:01:59]} 24. Nxe4 {[%clk 0:02:35]}  Rxe4 {[%clk 0:01:59]} 25. Bc1 {[%clk 0:02:26]}  b5 {[%clk 0:01:39]} 26. Re2 {[%clk 0:02:22]}  Rxc4 {[%clk 0:01:37]} 27. Qd1 {[%clk 0:02:19]}  Rd4 {[%clk 0:01:36]} 28. Rd2 {[%clk 0:02:18]}  Rxd2+ {[%clk 0:01:36]} 29. Bxd2 {[%clk 0:02:19]}  Qf7 {[%clk 0:01:36]} 30. Qe2 {[%clk 0:02:16]}  Qxd5+ {[%clk 0:01:34]} 31. Kh3 {[%clk 0:01:58]}  f4 {[%clk 0:01:29]} 32. Bxf4 {[%clk 0:01:46]}  Re6 {[%clk 0:01:24]} 33. Qxb5 {[%clk 0:01:38]}  Nf6 {[%clk 0:01:16]} 34. Rf2 {[%clk 0:01:16]}  Ne4 {[%clk 0:01:13]} 35. Re2 {[%clk 0:01:13]}  Bf6 {[%clk 0:01:07]} 36. Qb8+ {[%clk 0:01:11]}  Kf7 {[%clk 0:01:01]} 37. Qxa7+ {[%clk 0:00:51]}  Re7 {[%clk 0:01:00]} 38. Qa6 {[%clk 0:00:50]}  c4 {[%clk 0:00:48]} 39. Nf3 {[%clk 0:00:46]}  Ng5+ {[%clk 0:00:42]} 40. Nxg5+ {[%clk 0:00:46]}  hxg5 {[%clk 0:00:42]} 41. Rxe7+ {[%clk 0:00:47]}  Bxe7 {[%clk 0:00:43]} 42. Be3 {[%clk 0:00:31]}  Qe4 {[%clk 0:00:36]} 43. Bxg5 {[%clk 0:00:25]}  Qf5+ {[%clk 0:00:33]} 44. Kg2 {[%clk 0:00:23]}  Qd5+ {[%clk 0:00:29]} 45. Kh3 {[%clk 0:00:23]}  Bxg5 {[%clk 0:00:30]} 46. Qa7+ {[%clk 0:00:21]}  Kg6 {[%clk 0:00:30]} 47. Qf2 {[%clk 0:00:20]}  Qf5+ {[%clk 0:00:26]} 48. Qxf5+ {[%clk 0:00:20]}  Kxf5 {[%clk 0:00:27]} 49. a4 {[%clk 0:00:21]}  Bf6 {[%clk 0:00:24]} 50. a5 {[%clk 0:00:20]}  Bxb2 {[%clk 0:00:24]} 51. a6 {[%clk 0:00:21]}  Bd4 {[%clk 0:00:25]} 0-1


[Site "https://www.chess.com"]

[Event "Titled Tuesday Blitz June 21 Early 2022"]
[White "Przybylski, Wojciech"]
[Black "Prieto Aranguren, Alain"]
[WhiteFideId "1117599"]
[BlackFideId "2268906"]
[WhiteElo "2133"]
[BlackElo "2224"]
[Result "1-0"]
[Round "02"]
[TimeControl "180+1"]
[Date "2022.06.22"]
[WhiteClock "0:00:04"]
[BlackClock "0:00:06"]

1. d4 {[%clk 0:03:00]}  Nf6 {[%clk 0:02:59]} 2. Nf3 {[%clk 0:02:59]}  g6 {[%clk 0:02:58]} 3. c4 {[%clk 0:02:59]}  c5 {[%clk 0:02:55]} 4. dxc5 {[%clk 0:02:56]}  Na6 {[%clk 0:02:53]} 5. g3 {[%clk 0:02:55]}  Nxc5 {[%clk 0:02:53]} 6. Bg2 {[%clk 0:02:55]}  Bg7 {[%clk 0:02:52]} 7. O-O {[%clk 0:02:54]}  O-O {[%clk 0:02:53]} 8. Nc3 {[%clk 0:02:53]}  d6 {[%clk 0:02:53]} 9. h3 {[%clk 0:02:52]}  Be6 {[%clk 0:02:53]} 10. Nd2 {[%clk 0:02:51]}  Qc8 {[%clk 0:02:50]} 11. Nd5 {[%clk 0:02:44]}  Nxd5 {[%clk 0:02:46]} 12. cxd5 {[%clk 0:02:43]}  Bxh3 {[%clk 0:02:45]} 13. e4 {[%clk 0:02:29]}  Bxg2 {[%clk 0:02:41]} 14. Kxg2 {[%clk 0:02:28]}  Nd3 {[%clk 0:02:40]} 15. Qb3 {[%clk 0:02:26]}  Nxc1 {[%clk 0:02:36]} 16. Raxc1 {[%clk 0:02:25]}  Qd7 {[%clk 0:02:36]} 17. Nc4 {[%clk 0:02:18]}  Rac8 {[%clk 0:02:34]} 18. Na5 {[%clk 0:02:17]}  Rc7 {[%clk 0:02:25]} 19. Rxc7 {[%clk 0:01:48]}  Qxc7 {[%clk 0:02:25]} 20. Nc4 {[%clk 0:01:36]}  Rc8 {[%clk 0:02:21]} 21. Ne3 {[%clk 0:01:36]}  Qb6 {[%clk 0:02:12]} 22. Qxb6 {[%clk 0:01:33]}  axb6 {[%clk 0:02:12]} 23. b3 {[%clk 0:01:33]}  Bd4 {[%clk 0:02:06]} 24. Nc4 {[%clk 0:01:23]}  b5 {[%clk 0:02:04]} 25. Nd2 {[%clk 0:01:20]}  Rc2 {[%clk 0:02:01]} 26. Nf3 {[%clk 0:01:20]}  Bc5 {[%clk 0:01:56]} 27. a4 {[%clk 0:01:16]}  b4 {[%clk 0:01:54]} 28. e5 {[%clk 0:01:12]}  Rb2 {[%clk 0:01:52]} 29. a5 {[%clk 0:01:05]}  Rxb3 {[%clk 0:01:49]} 30. e6 {[%clk 0:00:59]}  fxe6 {[%clk 0:01:46]} 31. dxe6 {[%clk 0:00:58]}  Rb2 {[%clk 0:01:45]} 32. Ng5 {[%clk 0:00:56]}  Ra2 {[%clk 0:01:44]} 33. Ne4 {[%clk 0:00:52]}  Rxa5 {[%clk 0:01:43]} 34. f4 {[%clk 0:00:51]}  Ra2+ {[%clk 0:01:41]} 35. Kf3 {[%clk 0:00:51]}  b3 {[%clk 0:01:40]} 36. Rb1 {[%clk 0:00:50]}  Ra3 {[%clk 0:01:35]} 37. Ke2 {[%clk 0:00:37]}  Kg7 {[%clk 0:01:28]} 38. Nd2 {[%clk 0:00:29]}  b2 {[%clk 0:01:20]} 39. Rxb2 {[%clk 0:00:20]}  b6 {[%clk 0:01:20]} 40. g4 {[%clk 0:00:18]}  Kf6 {[%clk 0:01:14]} 41. Rb1 {[%clk 0:00:10]}  Kxe6 {[%clk 0:01:13]} 42. Rh1 {[%clk 0:00:10]}  Ra2 {[%clk 0:01:07]} 43. Kd3 {[%clk 0:00:09]}  h5 {[%clk 0:01:01]} 44. gxh5 {[%clk 0:00:08]}  gxh5 {[%clk 0:01:01]} 45. Rxh5 {[%clk 0:00:08]}  b5 {[%clk 0:00:58]} 46. Ne4 {[%clk 0:00:07]}  Bb6 {[%clk 0:00:44]} 47. Nc3 {[%clk 0:00:06]}  Ra3 {[%clk 0:00:43]} 48. Kc2 {[%clk 0:00:05]}  b4 {[%clk 0:00:40]} 49. f5+ {[%clk 0:00:05]}  Kd7 {[%clk 0:00:38]} 50. Nd5 {[%clk 0:00:05]}  Bc5 {[%clk 0:00:35]} 51. Rh7 {[%clk 0:00:03]}  Kc6 {[%clk 0:00:34]} 52. Nxe7+ {[%clk 0:00:03]}  Kb5 {[%clk 0:00:35]} 53. Nd5 {[%clk 0:00:03]}  Ra2+ {[%clk 0:00:29]} 54. Kb1 {[%clk 0:00:02]}  b3 {[%clk 0:00:26]} 55. Nc3+ {[%clk 0:00:01]}  Kc4 {[%clk 0:00:20]} 56. Nxa2 {[%clk 0:00:02]}  bxa2+ {[%clk 0:00:20]} 57. Kxa2 {[%clk 0:00:03]}  Kd5 {[%clk 0:00:21]} 58. f6 {[%clk 0:00:03]}  Ke6 {[%clk 0:00:21]} 59. f7 {[%clk 0:00:04]}  Ke7 {[%clk 0:00:21]} 60. Kb3 {[%clk 0:00:04]}  Kf8 {[%clk 0:00:18]} 61. Kc4 {[%clk 0:00:04]}  Be3 {[%clk 0:00:13]} 62. Kd5 {[%clk 0:00:05]}  Bf4 {[%clk 0:00:12]} 63. Ke6 {[%clk 0:00:06]}  Be5 {[%clk 0:00:12]} 64. Rh1 {[%clk 0:00:05]}  Bg7 {[%clk 0:00:10]} 65. Rg1 {[%clk 0:00:05]}  d5 {[%clk 0:00:10]} 66. Rb1 {[%clk 0:00:05]}  Bc3 {[%clk 0:00:06]} 67. Rb8+ {[%clk 0:00:04]} 1-0


[Site "https://www.chess.com"]

[Event "Titled Tuesday Blitz June 21 Early 2022"]
[White "Riehle, Marco"]
[Black "Sargsyan, Anna M."]
[WhiteFideId "12904392"]
[BlackFideId "13308130"]
[WhiteElo "2462"]
[BlackElo "2271"]
[Result "1-0"]
[Round "02"]
[TimeControl "180+1"]
[Date "2022.06.21"]
[WhiteClock "0:02:17"]
[BlackClock "0:00:53"]

1. e4 {[%clk 0:02:59]}  c6 {[%clk 0:02:52]} 2. c4 {[%clk 0:02:57]}  d5 {[%clk 0:02:53]} 3. exd5 {[%clk 0:02:58]}  cxd5 {[%clk 0:02:54]} 4. cxd5 {[%clk 0:02:56]}  Nf6 {[%clk 0:02:54]} 5. Nc3 {[%clk 0:02:55]}  Nxd5 {[%clk 0:02:55]} 6. Nf3 {[%clk 0:02:54]}  Nc6 {[%clk 0:02:55]} 7. Bb5 {[%clk 0:02:54]}  e6 {[%clk 0:02:51]} 8. O-O {[%clk 0:02:52]}  Be7 {[%clk 0:02:50]} 9. d4 {[%clk 0:02:53]}  O-O {[%clk 0:02:50]} 10. Re1 {[%clk 0:02:53]}  a6 {[%clk 0:02:40]} 11. Bd3 {[%clk 0:02:53]}  b5 {[%clk 0:02:40]} 12. Nxd5 {[%clk 0:02:52]}  Qxd5 {[%clk 0:02:23]} 13. Be4 {[%clk 0:02:52]}  Qd6 {[%clk 0:02:16]} 14. Ne5 {[%clk 0:02:52]}  Bb7 {[%clk 0:02:03]} 15. Bf4 {[%clk 0:02:51]}  g5 {[%clk 0:01:44]} 16. Bg3 {[%clk 0:02:23]}  f5 {[%clk 0:01:05]} 17. Nxc6 {[%clk 0:02:23]}  f4 {[%clk 0:01:05]} 18. Qh5 {[%clk 0:02:18]}  Rf7 {[%clk 0:00:53]} 19. Nxe7+ {[%clk 0:02:17]} 1-0


[Site "https://www.chess.com"]

[Event "Titled Tuesday Blitz June 21 Early 2022"]
[White "Roberson, Peter T"]
[Black "Marn, Jan"]
[WhiteFideId "412384"]
[BlackFideId "14619245"]
[WhiteElo "2346"]
[BlackElo "2105"]
[Result "0-1"]
[Round "02"]
[TimeControl "180+1"]
[Date "2022.06.22"]
[WhiteClock "0:00:02"]
[BlackClock "0:00:27"]

1. e4 {[%clk 0:03:00]}  e5 {[%clk 0:03:00]} 2. Nf3 {[%clk 0:03:00]}  Nc6 {[%clk 0:03:00]} 3. Bc4 {[%clk 0:02:58]}  Bc5 {[%clk 0:03:00]} 4. O-O {[%clk 0:02:57]}  Nf6 {[%clk 0:02:58]} 5. Re1 {[%clk 0:02:58]}  d6 {[%clk 0:02:54]} 6. c3 {[%clk 0:02:58]}  Bb6 {[%clk 0:02:47]} 7. h3 {[%clk 0:02:57]}  O-O {[%clk 0:02:45]} 8. d4 {[%clk 0:02:57]}  h6 {[%clk 0:02:45]} 9. a4 {[%clk 0:02:53]}  a5 {[%clk 0:02:45]} 10. Bb3 {[%clk 0:02:40]}  Re8 {[%clk 0:02:44]} 11. d5 {[%clk 0:02:13]}  Ne7 {[%clk 0:02:44]} 12. Na3 {[%clk 0:02:08]}  Ng6 {[%clk 0:02:37]} 13. Nc4 {[%clk 0:02:08]}  Bc5 {[%clk 0:02:33]} 14. Bc2 {[%clk 0:02:04]}  Nh5 {[%clk 0:02:24]} 15. Be3 {[%clk 0:02:00]}  Nhf4 {[%clk 0:02:15]} 16. Bxc5 {[%clk 0:01:55]}  dxc5 {[%clk 0:02:16]} 17. d6 {[%clk 0:01:55]}  Be6 {[%clk 0:02:01]} 18. Ncxe5 {[%clk 0:01:42]}  Nxe5 {[%clk 0:02:00]} 19. Nxe5 {[%clk 0:01:43]}  Qg5 {[%clk 0:02:00]} 20. Ng4 {[%clk 0:01:25]}  h5 {[%clk 0:02:00]} 21. Ne3 {[%clk 0:01:26]}  Rad8 {[%clk 0:01:22]} 22. e5 {[%clk 0:01:09]}  cxd6 {[%clk 0:01:19]} 23. exd6 {[%clk 0:01:05]}  Bd5 {[%clk 0:01:01]} 24. g3 {[%clk 0:00:54]}  Nxh3+ {[%clk 0:00:55]} 25. Kf1 {[%clk 0:00:54]}  Rxd6 {[%clk 0:00:52]} 26. Nxd5 {[%clk 0:00:50]}  Rxe1+ {[%clk 0:00:32]} 27. Qxe1 {[%clk 0:00:51]}  Re6 {[%clk 0:00:32]} 28. Ne3 {[%clk 0:00:30]}  h4 {[%clk 0:00:33]} 29. Rd1 {[%clk 0:00:24]}  hxg3 {[%clk 0:00:31]} 30. fxg3 {[%clk 0:00:25]}  g6 {[%clk 0:00:28]} 31. Kg2 {[%clk 0:00:10]}  Rxe3 {[%clk 0:00:26]} 32. Qf1 {[%clk 0:00:03]}  Qxg3+ {[%clk 0:00:26]} 33. Kh1 {[%clk 0:00:02]}  Nf2+ {[%clk 0:00:27]} 0-1


[Site "https://www.chess.com"]

[Event "Titled Tuesday Blitz June 21 Early 2022"]
[White "Ronka, Erik"]
[Black "Pham, Tran Gia Phuc"]
[WhiteFideId "505080"]
[BlackFideId "12415669"]
[WhiteElo "2264"]
[BlackElo "1789"]
[Result "0-1"]
[Round "02"]
[TimeControl "180+1"]
[Date "2022.06.22"]
[WhiteClock "0:01:38"]
[BlackClock "0:02:08"]

1. c4 {[%clk 0:02:59]}  Nf6 {[%clk 0:02:59]} 2. g3 {[%clk 0:02:59]}  g6 {[%clk 0:02:59]} 3. Bg2 {[%clk 0:02:59]}  c5 {[%clk 0:02:59]} 4. Nc3 {[%clk 0:02:59]}  Bg7 {[%clk 0:02:59]} 5. e4 {[%clk 0:02:59]}  O-O {[%clk 0:02:59]} 6. Nge2 {[%clk 0:03:00]}  Nc6 {[%clk 0:02:59]} 7. O-O {[%clk 0:03:01]}  d6 {[%clk 0:02:59]} 8. d3 {[%clk 0:03:01]}  Rb8 {[%clk 0:02:58]} 9. h3 {[%clk 0:03:01]}  a6 {[%clk 0:02:58]} 10. a4 {[%clk 0:03:01]}  Nd7 {[%clk 0:02:58]} 11. f4 {[%clk 0:03:00]}  Nd4 {[%clk 0:02:58]} 12. Kh2 {[%clk 0:02:59]}  e6 {[%clk 0:02:57]} 13. f5 {[%clk 0:02:39]}  exf5 {[%clk 0:02:54]} 14. exf5 {[%clk 0:02:39]}  Nxf5 {[%clk 0:02:51]} 15. Rxf5 {[%clk 0:02:34]}  gxf5 {[%clk 0:02:49]} 16. Nf4 {[%clk 0:02:35]}  Be5 {[%clk 0:02:45]} 17. Ncd5 {[%clk 0:02:34]}  Nf6 {[%clk 0:02:45]} 18. Be3 {[%clk 0:02:07]}  Be6 {[%clk 0:02:40]} 19. d4 {[%clk 0:02:06]}  cxd4 {[%clk 0:02:40]} 20. Bxd4 {[%clk 0:02:06]}  Bxd5 {[%clk 0:02:34]} 21. cxd5 {[%clk 0:02:06]}  Re8 {[%clk 0:02:24]} 22. Qd3 {[%clk 0:02:05]}  Ne4 {[%clk 0:02:23]} 23. Rf1 {[%clk 0:02:01]}  Bxd4 {[%clk 0:02:21]} 24. Qxd4 {[%clk 0:02:01]}  Qf6 {[%clk 0:02:21]} 25. Qd3 {[%clk 0:01:57]}  Qxb2 {[%clk 0:02:20]} 26. Nh5 {[%clk 0:01:56]}  Qe5 {[%clk 0:02:19]} 27. Qe3 {[%clk 0:01:43]}  Kh8 {[%clk 0:02:14]} 28. Qh6 {[%clk 0:01:37]}  Rg8 {[%clk 0:02:09]} 29. Rf4 {[%clk 0:01:38]}  Rg6 {[%clk 0:02:08]} 0-1


[Site "https://www.chess.com"]

[Event "Titled Tuesday Blitz June 21 Early 2022"]
[White "Rostovtsev, Dmitry"]
[Black "Rom, Jasper"]
[WhiteFideId "34278320"]
[BlackFideId "2023733"]
[WhiteElo "2769"]
[BlackElo "2478"]
[Result "1-0"]
[Round "02"]
[TimeControl "180+1"]
[Date "2022.06.22"]
[WhiteClock "0:00:10"]
[BlackClock "0:00:01"]

1. d4 {[%clk 0:03:00]}  d5 {[%clk 0:02:59]} 2. Bf4 {[%clk 0:03:01]}  Nf6 {[%clk 0:02:58]} 3. e3 {[%clk 0:03:01]}  c5 {[%clk 0:02:58]} 4. c3 {[%clk 0:03:00]}  Qb6 {[%clk 0:02:56]} 5. Qb3 {[%clk 0:02:59]}  c4 {[%clk 0:02:54]} 6. Qc2 {[%clk 0:02:59]}  Nc6 {[%clk 0:02:41]} 7. Nd2 {[%clk 0:02:58]}  Qa5 {[%clk 0:02:35]} 8. e4 {[%clk 0:02:55]}  e6 {[%clk 0:02:34]} 9. Ngf3 {[%clk 0:02:49]}  b5 {[%clk 0:02:32]} 10. Be2 {[%clk 0:02:31]}  Bb7 {[%clk 0:02:30]} 11. O-O {[%clk 0:02:28]}  Be7 {[%clk 0:02:28]} 12. b4 {[%clk 0:02:21]}  Qb6 {[%clk 0:02:00]} 13. e5 {[%clk 0:02:15]}  Ne4 {[%clk 0:01:50]} 14. Nxe4 {[%clk 0:02:15]}  dxe4 {[%clk 0:01:50]} 15. Nd2 {[%clk 0:02:15]}  a5 {[%clk 0:01:39]} 16. a3 {[%clk 0:02:10]}  O-O {[%clk 0:01:10]} 17. Nxe4 {[%clk 0:02:09]}  Ra7 {[%clk 0:01:10]} 18. Bg5 {[%clk 0:01:58]}  h6 {[%clk 0:01:00]} 19. Bxe7 {[%clk 0:01:54]}  Nxe7 {[%clk 0:01:01]} 20. Nd6 {[%clk 0:01:50]}  Bd5 {[%clk 0:00:58]} 21. Rab1 {[%clk 0:01:37]}  axb4 {[%clk 0:00:48]} 22. Rxb4 {[%clk 0:01:37]}  Rxa3 {[%clk 0:00:47]} 23. Nxb5 {[%clk 0:01:23]}  Rb3 {[%clk 0:00:43]} 24. Rb1 {[%clk 0:01:22]}  Nc6 {[%clk 0:00:30]} 25. R4xb3 {[%clk 0:01:19]}  cxb3 {[%clk 0:00:30]} 26. Qc1 {[%clk 0:01:16]}  Na5 {[%clk 0:00:29]} 27. c4 {[%clk 0:01:14]}  Rc8 {[%clk 0:00:27]} 28. Nd6 {[%clk 0:01:14]}  Rc7 {[%clk 0:00:20]} 29. h3 {[%clk 0:01:11]}  Qb4 {[%clk 0:00:15]} 30. Qb2 {[%clk 0:00:52]}  Nxc4 {[%clk 0:00:10]} 31. Qxb3 {[%clk 0:00:43]}  Qxb3 {[%clk 0:00:10]} 32. Rxb3 {[%clk 0:00:44]}  Nxd6 {[%clk 0:00:10]} 33. exd6 {[%clk 0:00:45]}  Rd7 {[%clk 0:00:08]} 34. Rb6 {[%clk 0:00:44]}  f6 {[%clk 0:00:05]} 35. Bb5 {[%clk 0:00:43]}  Rd8 {[%clk 0:00:04]} 36. d7 {[%clk 0:00:37]}  Kf7 {[%clk 0:00:03]} 37. g4 {[%clk 0:00:36]}  Ke7 {[%clk 0:00:04]} 38. f4 {[%clk 0:00:35]}  g5 {[%clk 0:00:02]} 39. fxg5 {[%clk 0:00:33]}  hxg5 {[%clk 0:00:03]} 40. Kf2 {[%clk 0:00:28]}  Ra8 {[%clk 0:00:03]} 41. Ke1 {[%clk 0:00:22]}  Ra1+ {[%clk 0:00:03]} 42. Kd2 {[%clk 0:00:23]}  Ra2+ {[%clk 0:00:03]} 43. Kc3 {[%clk 0:00:24]}  Ra3+ {[%clk 0:00:03]} 44. Kc2 {[%clk 0:00:23]}  Ra8 {[%clk 0:00:03]} 45. Kc3 {[%clk 0:00:20]}  Ra3+ {[%clk 0:00:03]} 46. Kb4 {[%clk 0:00:19]}  Ra8 {[%clk 0:00:03]} 47. Kc5 {[%clk 0:00:16]}  Rd8 {[%clk 0:00:03]} 48. Ra6 {[%clk 0:00:13]}  Rb8 {[%clk 0:00:03]} 49. Ra7 {[%clk 0:00:13]}  Rd8 {[%clk 0:00:03]} 50. Bc6 {[%clk 0:00:14]}  Bb3 {[%clk 0:00:01]} 51. Kb6 {[%clk 0:00:12]}  Bc4 {[%clk 0:00:01]} 52. Kc7 {[%clk 0:00:12]}  Bb3 {[%clk 0:00:01]} 53. Rb7 {[%clk 0:00:10]}  Bc4 {[%clk 0:00:01]} 54. Rb6 {[%clk 0:00:10]} 1-0


[Site "https://www.chess.com"]

[Event "Titled Tuesday Blitz June 21 Early 2022"]
[White "Samsonkin, Artiom"]
[Black "Koellner, Ruben Gideon"]
[WhiteFideId "13503111"]
[BlackFideId "12993093"]
[WhiteElo "2779"]
[BlackElo "2564"]
[Result "1-0"]
[Round "02"]
[TimeControl "180+1"]
[Date "2022.06.22"]
[WhiteClock "0:00:19"]
[BlackClock "0:00:46"]

1. d4 {[%clk 0:03:00]}  d6 {[%clk 0:02:59]} 2. Nf3 {[%clk 0:02:56]}  Nf6 {[%clk 0:02:58]} 3. Bf4 {[%clk 0:02:51]}  g6 {[%clk 0:02:54]} 4. Nc3 {[%clk 0:02:46]}  Bg7 {[%clk 0:02:52]} 5. e4 {[%clk 0:02:46]}  O-O {[%clk 0:02:50]} 6. Qd2 {[%clk 0:02:45]}  Nc6 {[%clk 0:02:50]} 7. Bh6 {[%clk 0:02:43]}  e5 {[%clk 0:02:49]} 8. Bxg7 {[%clk 0:02:32]}  Kxg7 {[%clk 0:02:48]} 9. O-O-O {[%clk 0:02:17]}  Bg4 {[%clk 0:02:43]} 10. dxe5 {[%clk 0:02:03]}  dxe5 {[%clk 0:02:27]} 11. Qe3 {[%clk 0:01:49]}  Qe7 {[%clk 0:02:18]} 12. Nd5 {[%clk 0:01:40]}  Nxd5 {[%clk 0:02:16]} 13. exd5 {[%clk 0:01:41]}  Bxf3 {[%clk 0:02:15]} 14. gxf3 {[%clk 0:01:36]}  Nb4 {[%clk 0:02:09]} 15. a3 {[%clk 0:01:34]}  Na6 {[%clk 0:02:04]} 16. Bxa6 {[%clk 0:01:28]}  bxa6 {[%clk 0:02:05]} 17. f4 {[%clk 0:01:25]}  Rfe8 {[%clk 0:02:01]} 18. Rhe1 {[%clk 0:01:19]}  f6 {[%clk 0:02:01]} 19. fxe5 {[%clk 0:01:08]}  Qxe5 {[%clk 0:01:53]} 20. Qxe5 {[%clk 0:01:02]}  Rxe5 {[%clk 0:01:49]} 21. f4 {[%clk 0:00:51]}  Rxe1 {[%clk 0:01:46]} 22. Rxe1 {[%clk 0:00:52]}  Kf7 {[%clk 0:01:46]} 23. Re6 {[%clk 0:00:50]}  Rd8 {[%clk 0:01:41]} 24. c4 {[%clk 0:00:24]}  Rd6 {[%clk 0:01:26]} 25. Rxd6 {[%clk 0:00:25]}  cxd6 {[%clk 0:01:27]} 26. Kd2 {[%clk 0:00:25]}  a5 {[%clk 0:01:10]} 27. Kd3 {[%clk 0:00:16]}  g5 {[%clk 0:01:08]} 28. fxg5 {[%clk 0:00:06]}  fxg5 {[%clk 0:01:09]} 29. Ke4 {[%clk 0:00:07]}  Kf6 {[%clk 0:01:08]} 30. b4 {[%clk 0:00:07]}  axb4 {[%clk 0:01:08]} 31. axb4 {[%clk 0:00:08]}  h5 {[%clk 0:01:05]} 32. c5 {[%clk 0:00:09]}  dxc5 {[%clk 0:01:03]} 33. bxc5 {[%clk 0:00:10]}  a5 {[%clk 0:00:55]} 34. c6 {[%clk 0:00:10]}  Ke7 {[%clk 0:00:54]} 35. Ke5 {[%clk 0:00:11]}  a4 {[%clk 0:00:54]} 36. d6+ {[%clk 0:00:12]}  Kd8 {[%clk 0:00:49]} 37. Ke6 {[%clk 0:00:12]}  a3 {[%clk 0:00:49]} 38. c7+ {[%clk 0:00:13]}  Kc8 {[%clk 0:00:49]} 39. d7+ {[%clk 0:00:14]}  Kxc7 {[%clk 0:00:46]} 40. Ke7 {[%clk 0:00:15]}  a2 {[%clk 0:00:47]} 41. d8=Q+ {[%clk 0:00:16]}  Kc6 {[%clk 0:00:48]} 42. Qd1 {[%clk 0:00:17]}  g4 {[%clk 0:00:47]} 43. Qa1 {[%clk 0:00:17]}  h4 {[%clk 0:00:47]} 44. Qxa2 {[%clk 0:00:18]}  g3 {[%clk 0:00:46]} 45. Qc4+ {[%clk 0:00:18]}  Kb6 {[%clk 0:00:45]} 46. Qxh4 {[%clk 0:00:19]}  g2 {[%clk 0:00:45]} 47. Qg3 {[%clk 0:00:19]}  g1=Q {[%clk 0:00:46]} 48. Qxg1+ {[%clk 0:00:19]} 1-0


[Site "https://www.chess.com"]

[Event "Titled Tuesday Blitz June 21 Early 2022"]
[White "Samunenkov, Ihor"]
[Black "Polster, Christian"]
[WhiteFideId "14187086"]
[BlackFideId "12965081"]
[WhiteElo "2409"]
[BlackElo "2274"]
[Result "1-0"]
[Round "02"]
[TimeControl "180+1"]
[Date "2022.06.22"]
[WhiteClock "0:00:34"]
[BlackClock "0:00:06"]

1. e4 {[%clk 0:03:00]}  c5 {[%clk 0:02:59]} 2. Nf3 {[%clk 0:03:01]}  d6 {[%clk 0:02:59]} 3. d4 {[%clk 0:03:01]}  cxd4 {[%clk 0:03:00]} 4. Nxd4 {[%clk 0:03:02]}  Nf6 {[%clk 0:02:59]} 5. Nc3 {[%clk 0:03:02]}  a6 {[%clk 0:02:55]} 6. h3 {[%clk 0:03:02]}  e5 {[%clk 0:02:54]} 7. Nde2 {[%clk 0:03:02]}  b5 {[%clk 0:02:53]} 8. Nd5 {[%clk 0:03:01]}  Nbd7 {[%clk 0:02:52]} 9. Nec3 {[%clk 0:03:00]}  Bb7 {[%clk 0:02:50]} 10. a4 {[%clk 0:02:08]}  Nxd5 {[%clk 0:02:24]} 11. Nxd5 {[%clk 0:02:05]}  b4 {[%clk 0:02:12]} 12. a5 {[%clk 0:01:50]}  Nc5 {[%clk 0:01:50]} 13. Be3 {[%clk 0:01:36]}  Nxe4 {[%clk 0:01:35]} 14. Bb6 {[%clk 0:01:32]}  Qc8 {[%clk 0:01:30]} 15. Nc7+ {[%clk 0:01:30]}  Kd7 {[%clk 0:01:30]} 16. Bc4 {[%clk 0:01:05]}  Ke7 {[%clk 0:01:15]} 17. O-O {[%clk 0:01:00]}  Ng5 {[%clk 0:01:02]} 18. f4 {[%clk 0:00:44]}  Nxh3+ {[%clk 0:00:45]} 19. gxh3 {[%clk 0:00:45]}  Qxh3 {[%clk 0:00:45]} 20. Nd5+ {[%clk 0:00:45]}  Bxd5 {[%clk 0:00:40]} 21. Qxd5 {[%clk 0:00:38]}  Qg3+ {[%clk 0:00:28]} 22. Qg2 {[%clk 0:00:37]}  Qxg2+ {[%clk 0:00:21]} 23. Kxg2 {[%clk 0:00:38]}  Rc8 {[%clk 0:00:17]} 24. Bxa6 {[%clk 0:00:32]}  Rxc2+ {[%clk 0:00:16]} 25. Rf2 {[%clk 0:00:33]}  Rxf2+ {[%clk 0:00:14]} 26. Kxf2 {[%clk 0:00:34]}  exf4 {[%clk 0:00:14]} 27. Bb7 {[%clk 0:00:34]}  Kf6 {[%clk 0:00:12]} 28. a6 {[%clk 0:00:34]}  Be7 {[%clk 0:00:12]} 29. a7 {[%clk 0:00:34]}  g5 {[%clk 0:00:11]} 30. a8=Q {[%clk 0:00:35]}  Rxa8 {[%clk 0:00:12]} 31. Bxa8 {[%clk 0:00:35]}  h5 {[%clk 0:00:12]} 32. Bd4+ {[%clk 0:00:35]}  Kf5 {[%clk 0:00:10]} 33. Ra5+ {[%clk 0:00:32]}  Kg4 {[%clk 0:00:08]} 34. Bf3+ {[%clk 0:00:33]}  Kh4 {[%clk 0:00:09]} 35. Kg2 {[%clk 0:00:33]}  g4 {[%clk 0:00:07]} 36. Bf2+ {[%clk 0:00:34]}  g3 {[%clk 0:00:06]} 37. Rxh5# {[%clk 0:00:34]} 1-0


[Site "https://www.chess.com"]